fUSD/lending_fUSD_20250512
["ID","MTS","AMOUNT","RATE_DAILY","PERIOD"]
[360837684,1747063843879,-1011.0,0.000134,2]
[360837685,1747063843889,-2500.0,0.000134,2]
[360837686,1747063843899,-613.95279071,0.0001341,2]
[360837687,1747063843908,-156.587,0.00013492,2]
[360837688,1747063843924,-151.0,0.00013492,2]
[360837689,1747063843934,-668.65185757,0.00013492,2]
[360837690,1747063843943,-119371.7355,0.000135,2]
[360837691,1747063843953,-960.99618934,0.00013591,2]
[360837692,1747063843963,-318.8714536,0.00013591,2]
[360837693,1747063843972,-960.9961893,0.00013592,2]
[360837694,1747063843982,-960.9961893,0.00013593,2]
[360837695,1747063843992,-960.9961893,0.00013593,2]
[360837696,1747063844001,-960.9961893,0.00013594,2]
[360837697,1747063844011,-960.9961893,0.00013595,2]
[360837698,1747063844020,-960.9961893,0.00013596,2]
[360837699,1747063844031,-960.9961893,0.00013596,2]
[360837701,1747063844047,-960.9961893,0.00013597,2]
[360837702,1747063844056,-323.58123618,0.00013598,2]
[360837703,1747063844066,-960.9961893,0.00013598,2]
[360837704,1747063844076,-175.90886638,0.00013598,2]
[360837705,1747063844086,-282.7789479,0.00013598,2]
[360837706,1747063844096,-3146.35536548,0.00013598,2]
[360837707,1747063844105,-165.35194892,0.00013598,2]
[360837708,1747063844116,-1910.0,0.000136,2]
[360837709,1747063844126,-863.7023515,0.00013661,2]
[360837710,1747063844136,-1124.0,0.00013671,2]
[360837711,1747063844145,-500.0,0.00013673,2]
[360837712,1747063844155,-500.0,0.00013673,2]
[360837713,1747063844169,-500.0,0.00013673,2]
[360837714,1747063844179,-502.78786869,0.00013673,2]
[360837715,1747063844188,-500.0,0.00013673,2]
[360837717,1747063844198,-502.07680751,0.00013673,2]
[360837718,1747063844208,-500.0,0.00013673,2]
[360837719,1747063844218,-500.0,0.00013673,2]
[360837720,1747063844228,-500.0,0.00013673,2]
[360837721,1747063844237,-2772.64159418,0.00013688,2]
[360837722,1747063844256,-471.86140582,0.00013688,2]
[360837723,1747063844265,-82.22859418,0.00013688,2]
[360837724,1747063844284,-80.79440582,0.00013688,2]
[360837725,1747063844293,-160.17755492,0.00013688,2]
[360837726,1747063844303,-160.17755492,0.00013688,2]
[360837727,1747063844312,-4902.87143863,0.00013691,2]
[360837728,1747063844331,-2061.9156,0.00013691,2]
[360837729,1747063844344,-455.12759846,0.00013691,2]
[360837730,1747063844382,-1631.64817584,0.00013691,2]
[360837731,1747063845460,-2686.41,0.00013691,2]
[360837732,1747063845474,-2057.36690847,0.00013691,2]
[360837733,1747063845484,-42211.358112,0.00013691,2]
[360837734,1747063845493,-4510.85039585,0.00013691,2]
[360837735,1747063845504,-780.05027635,0.00013691,2]
[360837736,1747063845513,-3394.90447834,0.00013691,2]
[360837737,1747063845619,-100119.87652185,0.00013691,2]
[360837738,1747063845632,-19275.07371331,0.00013691,2]
[360837739,1747063845641,-300.0,0.00013697,2]
[360837740,1747063845651,-156.61640421,0.00013698,2]
[360837741,1747063845660,-156.36108238,0.00013698,2]
[360837742,1747063845675,-898.29994,0.00013698,2]
[360837743,1747063845687,-997.48,0.00013698,2]
[360837744,1747063845698,-1008.1,0.00013698,2]
[360837745,1747063845710,-107872.66468222,0.00013698,2]
[360837746,1747063845721,-948.05372901,0.00013698,2]
[360837747,1747063845841,-3084.6,0.00013698,2]
[360837749,1747063852740,400.0,0.00028,120]
[360837750,1747063899207,-167.41426294,0.00012026,2]
[360837751,1747063912417,-166.66315328,0.00012026,2]
[360837761,1747063927384,-165.92258378,0.00012026,2]
[360837762,1747063927418,-31.78363901,0.00012026,2]
[360837763,1747063942459,-286.83027655,0.00012026,2]
[360837764,1747063957379,-166.01117417,0.00012026,2]
[360837765,1747063957410,-132.3527152,0.00012026,2]
[360837766,1747063972434,-205.14971063,0.00012026,2]
[360837767,1747063987385,-162.49757417,0.00012026,2]
[360837768,1747063987419,-91.60343449,0.00012026,2]
[360837769,1747064004154,-179.61765318,0.00012026,2]
[360837770,1747064018597,-228.77891233,0.00012026,2]
[360837771,1747064018632,-63.82244428,0.00012026,2]
[360837772,1747064032427,-103.59181866,0.00012026,2]
[360837773,1747064032459,-237.5826801,0.00012026,2]
[360837774,1747064047610,1994.22,0.0001146,2]
[360837775,1747064047982,-311.70917052,0.00012025,2]
[360837776,1747064062439,-188.29082948,0.00012025,2]
[360837777,1747064062463,-172.25331287,0.00012025,2]
[360837778,1747064077418,-156.0915832,0.00012024,2]
[360837779,1747064077450,-43.22384994,0.00012024,2]
[360837780,1747064093035,-184.34526173,0.00012024,2]
[360837781,1747064107516,-272.43088833,0.00012024,2]
[360837782,1747064107549,-7.75955037,0.00012024,2]
[360837783,1747064122440,-176.40461403,0.00012024,2]
[360837784,1747064122479,-111.62112286,0.00012024,2]
[360837785,1747064137422,-152.56143732,0.00012024,2]
[360837786,1747064152430,-235.81743982,0.00012024,2]
[360837787,1747064152454,-48.17271001,0.0001207,2]
[360837788,1747064167710,-151.82728999,0.0001207,2]
[360837789,1747064212022,1800.0,0.000137,5]
[360837790,1747064214181,300.0,0.000138,5]
[360837791,1747064216496,300.0,0.000139,5]
[360837792,1747064223192,-1826.63,0.00024685,30]
[360837793,1747064223227,-1251.0,0.00025,30]
[360837794,1747064223256,-150.0,0.000255,30]
[360837795,1747064223291,-1193.89501034,0.00027397,30]
[360837796,1747064223316,-208.0,0.00027397,30]
[360837797,1747064223342,-200.0,0.00027397,30]
[360837798,1747064223371,-184.52,0.00027397,30]
[360837799,1747064223399,-1690.0,0.00027815,30]
[360837800,1747064223423,-1001.98048907,0.000279,30]
[360837801,1747064223453,-1024.51202508,0.00028,30]
[360837802,1747064223486,-572.14356851,0.00028767,30]
[360837803,1747064223512,-483.34789815,0.00028767,30]
[360837804,1747064223544,-316.04,0.000291,120]
[360837805,1747064223572,-408.41,0.000291,120]
[360837806,1747064223600,-1039.06567713,0.000295,120]
[360837807,1747064223627,-589.39034635,0.00029589,30]
[360837808,1747064223654,-500.0,0.00029589,30]
[360837809,1747064223682,-500.0,0.00029589,30]
[360837810,1747064223710,-203.89,0.000298,30]
[360837811,1747064223738,-500.0,0.000298,30]
[360837812,1747064223772,-1299.2,0.000298,31]
[360837813,1747064223805,-1299.2,0.000298,31]
[360837814,1747064223839,-1299.2,0.000298,31]
[360837815,1747064223869,-1299.2,0.000298,31]
[360837816,1747064223901,-1299.2,0.000298,31]
[360837817,1747064223933,-1299.2,0.000298,31]
[360837818,1747064223967,-1299.2,0.000298,31]
[360837819,1747064224003,-1299.2,0.000298,31]
[360837820,1747064224037,-1299.2,0.000298,31]
[360837821,1747064224068,-1299.2,0.000298,31]
[360837822,1747064224100,-1299.2,0.000298,31]
[360837823,1747064224132,-1299.2,0.000298,31]
[360837824,1747064224166,-1299.2,0.000298,31]
[360837825,1747064224198,-1299.2,0.000298,31]
[360837826,1747064224237,-1299.2,0.000298,31]
[360837827,1747064224270,-1299.2,0.000298,31]
[360837828,1747064224298,-547.73360385,0.00029863,35]
[360837829,1747064224325,-500.0,0.00029863,30]
[360837830,1747064224353,-628.77136216,0.0003,120]
[360837831,1747064224379,-2214.14065451,0.0003,120]
[360837832,1747064224406,-485.20466036,0.0003,120]
[360837833,1747064224433,-164.05121,0.0003,30]
[360837834,1747064224461,-586.9180901,0.0003,30]
[360837835,1747064224489,-75285.47379983,0.0003,120]
[360837836,1747064224517,-623.0,0.0003,120]
[360837837,1747064224543,-684.1160494,0.0003,120]
[360837838,1747064224569,-205.49283655,0.0003,30]
[360837839,1747064224597,-1002.41298715,0.0003,30]
[360837840,1747064224626,-2000.0,0.0003,60]
[360837841,1747064224654,-1000.0,0.0003013,120]
[360837842,1747064224681,-173.65960462,0.00030136,30]
[360837843,1747064224709,-352.22129028,0.00030137,120]
[360837844,1747064224735,-1000.0,0.00030411,120]
[360837845,1747064224760,-581.25,0.000305,120]
[360837846,1747064224786,-1000.0,0.00030685,120]
[360837847,1747064224811,-250.0,0.000308,30]
[360837848,1747064224847,-1299.2,0.000308,31]
[360837849,1747064224879,-1299.2,0.000308,31]
[360837850,1747064224915,-1299.2,0.000308,31]
[360837851,1747064224947,-1299.2,0.000308,31]
[360837852,1747064224980,-1299.2,0.000308,31]
[360837853,1747064225011,-1299.2,0.000308,31]
[360837854,1747064225044,-1299.2,0.000308,31]
[360837855,1747064225075,-1299.2,0.000308,31]
[360837856,1747064225107,-1299.2,0.000308,31]
[360837857,1747064225138,-1299.2,0.000308,31]
[360837858,1747064225171,-1299.2,0.000308,31]
[360837859,1747064225205,-1299.2,0.000308,31]
[360837860,1747064225237,-1299.2,0.000308,31]
[360837861,1747064225269,-1299.2,0.000308,31]
[360837862,1747064225301,-1299.2,0.000308,31]
[360837863,1747064225332,-1299.2,0.000308,31]
[360837864,1747064225364,-1299.2,0.000308,31]
[360837865,1747064225396,-1299.2,0.000308,31]
[360837866,1747064225427,-1299.2,0.000308,31]
[360837867,1747064225460,-1299.2,0.000308,31]
[360837868,1747064225505,-1299.2,0.000308,31]
[360837869,1747064225540,-1299.2,0.000308,31]
[360837870,1747064225573,-1299.2,0.000308,31]
[360837871,1747064225608,-1299.2,0.000308,31]
[360837872,1747064225636,-1000.0,0.00030959,120]
[360837873,1747064225664,-2044.0,0.00031,30]
[360837874,1747064225696,-1000.0,0.00031233,120]
[360837875,1747064225731,-1000.0,0.00031507,120]
[360837876,1747064225764,-1299.2,0.000317,31]
[360837877,1747064225797,-1299.2,0.000317,31]
[360837878,1747064225831,-1299.2,0.000317,31]
[360837879,1747064225866,-1299.2,0.000317,31]
[360837880,1747064225899,-1299.2,0.000317,31]
[360837881,1747064225932,-1299.2,0.000317,31]
[360837882,1747064225966,-1299.2,0.000317,31]
[360837883,1747064225998,-1299.2,0.000317,31]
[360837884,1747064226031,-1299.2,0.000317,31]
[360837885,1747064226063,-1299.2,0.000317,31]
[360837886,1747064226101,-1299.2,0.000317,31]
[360837887,1747064226134,-1299.2,0.000317,31]
[360837888,1747064226168,-1299.2,0.000317,31]
[360837889,1747064226439,-1299.2,0.000317,31]
[360837890,1747064226479,-1299.2,0.000317,31]
[360837891,1747064226514,-1299.2,0.000317,31]
[360837892,1747064226553,-1299.2,0.000317,31]
[360837893,1747064226589,-1299.2,0.000317,31]
[360837894,1747064226624,-1299.2,0.000317,31]
[360837895,1747064226657,-1299.2,0.000317,31]
[360837896,1747064226689,-1299.2,0.000317,31]
[360837897,1747064226726,-1299.2,0.000317,31]
[360837898,1747064226757,-1299.2,0.000317,31]
[360837899,1747064226788,-1299.2,0.000317,31]
[360837900,1747064226814,-1000.0,0.00031781,120]
[360837901,1747064226843,-807.903978,0.00032,40]
[360837902,1747064226870,-600.0,0.00032,120]
[360837903,1747064226897,-991.1459603,0.00032,33]
[360837904,1747064226923,-1000.0,0.00032055,120]
[360837905,1747064226950,-1000.0,0.00032329,120]
[360837906,1747064226984,-1299.2,0.000326,31]
[360837907,1747064227015,-1299.2,0.000326,31]
[360837908,1747064227047,-1299.2,0.000326,31]
[360837909,1747064227078,-1299.2,0.000326,31]
[360837910,1747064227108,-1299.2,0.000326,31]
[360837911,1747064227138,-1299.2,0.000326,31]
[360837912,1747064227170,-1299.2,0.000326,31]
[360837913,1747064227202,-1299.2,0.000326,31]
[360837914,1747064227242,-1299.2,0.000326,31]
[360837915,1747064227275,-1299.2,0.000326,31]
[360837916,1747064227309,-1299.2,0.000326,31]
[360837917,1747064227342,-1299.2,0.000326,31]
[360837918,1747064227374,-1299.2,0.000326,31]
[360837919,1747064227408,-1299.2,0.000326,31]
[360837920,1747064227443,-1299.2,0.000326,31]
[360837921,1747064227480,-1299.2,0.000326,31]
[360837922,1747064227514,-1299.2,0.000326,31]
[360837923,1747064227547,-1299.2,0.000326,31]
[360837924,1747064227578,-1299.2,0.000326,31]
[360837925,1747064227610,-1299.2,0.000326,31]
[360837926,1747064227643,-1299.2,0.000326,31]
[360837927,1747064227675,-1299.2,0.000326,31]
[360837928,1747064227709,-1299.2,0.000326,31]
[360837929,1747064227740,-1299.2,0.000326,31]
[360837930,1747064227767,-1000.0,0.00032603,120]
[360837931,1747064227794,-282.41,0.0003287,120]
[360837932,1747064227824,-625.66,0.00032876,120]
[360837933,1747064227850,-625.66,0.00032876,120]
[360837934,1747064227875,-625.66,0.00032876,120]
[360837935,1747064227900,-625.66,0.00032876,120]
[360837936,1747064227924,-625.66,0.00032876,120]
[360837937,1747064227949,-625.66,0.00032876,120]
[360837938,1747064227977,-625.66,0.00032876,120]
[360837939,1747064228003,-625.66,0.00032876,120]
[360837940,1747064228028,-625.66,0.00032876,120]
[360837941,1747064228055,-625.66,0.00032876,120]
[360837942,1747064228082,-625.66,0.00032876,120]
[360837943,1747064228108,-625.66,0.00032876,120]
[360837944,1747064228134,-625.66,0.00032876,120]
[360837945,1747064228161,-625.66,0.00032876,120]
[360837946,1747064228187,-625.66,0.00032876,120]
[360837947,1747064228219,-625.66,0.00032876,120]
[360837948,1747064228246,-625.66,0.00032876,120]
[360837949,1747064228272,-625.66,0.00032876,120]
[360837950,1747064228298,-625.66,0.00032876,120]
[360837951,1747064228323,-625.66,0.00032876,120]
[360837952,1747064228349,-625.66,0.00032876,120]
[360837953,1747064228374,-625.66,0.00032876,120]
[360837954,1747064228399,-625.66,0.00032876,120]
[360837955,1747064228424,-625.73481103,0.00032876,120]
[360837956,1747064228451,-1000.0,0.00032877,120]
[360837957,1747064228480,-433.75424894,0.00033,120]
[360837958,1747064228507,-14600.0,0.00033,30]
[360837959,1747064228533,-1800.0,0.00033,34]
[360837960,1747064228558,-1250.52391507,0.00033,120]
[360837961,1747064228584,-700.0,0.00033082,60]
[360837962,1747064228618,-1299.2,0.000335,31]
[360837963,1747064228650,-1299.2,0.000335,31]
[360837964,1747064228682,-1299.2,0.000335,31]
[360837965,1747064228716,-1299.2,0.000335,31]
[360837966,1747064228747,-1299.2,0.000335,31]
[360837967,1747064228778,-1299.2,0.000335,31]
[360837968,1747064228809,-1299.2,0.000335,31]
[360837969,1747064228840,-1299.2,0.000335,31]
[360837970,1747064228873,-1299.2,0.000335,31]
[360837971,1747064228903,-1299.2,0.000335,31]
[360837972,1747064228934,-1299.2,0.000335,31]
[360837973,1747064228967,-1299.2,0.000335,31]
[360837974,1747064228991,-1800.0,0.0003363,60]
[360837975,1747064229018,-247.17285335,0.000339,120]
[360837976,1747064229043,-1048.5887203,0.00034,120]
[360837977,1747064229068,-1800.0,0.00034,35]
[360837978,1747064229094,-2000.0,0.00034,120]
[360837979,1747064229119,-1000.0,0.0003413,30]
[360837980,1747064229144,-736.13470555,0.00034178,60]
[360837981,1747064229174,-1008.77492875,0.00034726,60]
[360837982,1747064229203,-505.15841459,0.00035,30]
[360837983,1747064229232,-3294.26514983,0.00035,30]
[360837984,1747064229258,-1800.0,0.00035,36]
[360837985,1747064229283,-150.07537935,0.00035,30]
[360837986,1747064229307,-2000.0,0.00035,60]
[360837987,1747064229333,-3522.53,0.00035,120]
[360837988,1747064229364,-1000.0,0.0003589,120]
[360837989,1747064229391,-900.0,0.00036,37]
[360837990,1747064229416,-1500.0,0.00036,120]
[360837991,1747064229441,-2408.95144551,0.00036,60]
[360837992,1747064229691,-329.1753935,0.00036,120]
[360837993,1747064229721,-2000.0,0.00036,120]
[360837994,1747064229749,-1000.0,0.00036164,120]
[360837995,1747064229778,-1000.0,0.00036438,120]
[360837996,1747064229808,-1000.0,0.00036712,120]
[360837997,1747064229835,-345866.08594687,0.000368,120]
[360837998,1747064229860,-1000.0,0.00036986,120]
[360837999,1747064229886,-950.83339764,0.00037,120]
[360838000,1747064229910,-900.0,0.00037,38]
[360838001,1747064229935,-500.0,0.00037,120]
[360838002,1747064229965,-1000.0,0.0003726,120]
[360838003,1747064229990,-772.0,0.00037315,30]
[360838004,1747064230016,-1000.0,0.00037534,120]
[360838005,1747064230041,-1000.0,0.0003756,30]
[360838006,1747064230067,-4000.0,0.00037654,31]
[360838007,1747064230092,-163.024,0.00037766,49]
[360838008,1747064230119,-3244.504,0.00037766,49]
[360838009,1747064230146,-1000.0,0.00037808,120]
[360838010,1747064230176,-515.81,0.00037808,60]
[360838011,1747064230203,-515.82,0.00037839,80]
[360838012,1747064230230,-515.81,0.00037869,100]
[360838013,1747064230257,-515.82,0.000379,120]
[360838014,1747064230284,-900.0,0.00038,39]
[360838015,1747064230308,-531.15885024,0.00038,30]
[360838016,1747064230334,-1500.0,0.00038,120]
[360838017,1747064230359,-413.7489515,0.00038,30]
[360838018,1747064230384,-10000.0,0.00038,120]
[360838019,1747064230413,-2000.0,0.00038,120]
[360838020,1747064230441,-1000.0,0.00038082,120]
[360838021,1747064230471,-1000.0,0.00038356,120]
[360838022,1747064230497,-639.54915562,0.0003836,120]
[360838023,1747064230523,-639.54915562,0.0003836,120]
[360838024,1747064230547,-639.54915562,0.0003836,120]
[360838025,1747064230572,-639.54915562,0.0003836,120]
[360838026,1747064230597,-639.54915562,0.0003836,120]
[360838027,1747064230623,-639.54915562,0.0003836,120]
[360838028,1747064230650,-639.54915562,0.0003836,120]
[360838029,1747064230676,-639.54915562,0.0003836,120]
[360838030,1747064230703,-639.54915562,0.0003836,120]
[360838031,1747064230730,-639.54915562,0.0003836,120]
[360838032,1747064230761,-639.54915562,0.0003836,120]
[360838033,1747064230786,-639.54915562,0.0003836,120]
[360838034,1747064230810,-639.54915562,0.0003836,120]
[360838035,1747064230836,-639.54915562,0.0003836,120]
[360838036,1747064230861,-639.54915562,0.0003836,120]
[360838037,1747064230886,-639.54915562,0.0003836,120]
[360838038,1747064230911,-639.54915562,0.0003836,120]
[360838039,1747064230935,-639.54915562,0.0003836,120]
[360838040,1747064230966,-639.54915562,0.0003836,120]
[360838041,1747064230991,-639.54,0.0003836,120]
[360838042,1747064231017,-1492.28136312,0.0003836,120]
[360838043,1747064231044,-1492.28136312,0.0003836,120]
[360838044,1747064231071,-1492.28136312,0.0003836,120]
[360838045,1747064231096,-1492.28136312,0.0003836,120]
[360838046,1747064231121,-1492.28136312,0.0003836,120]
[360838047,1747064231150,-1492.28136312,0.0003836,120]
[360838048,1747064231176,-1492.28136312,0.0003836,120]
[360838049,1747064231201,-1492.28136312,0.0003836,120]
[360838050,1747064231228,-1492.28136312,0.0003836,120]
[360838051,1747064231254,-1492.28136312,0.0003836,120]
[360838052,1747064231279,-1492.28136312,0.0003836,120]
[360838053,1747064231304,-1492.28136312,0.0003836,120]
[360838054,1747064231331,-1492.28136312,0.0003836,120]
[360838055,1747064231357,-1492.28136312,0.0003836,120]
[360838056,1747064231383,-1492.28136312,0.0003836,120]
[360838057,1747064231409,-1492.28136312,0.0003836,120]
[360838058,1747064231436,-1492.28136312,0.0003836,120]
[360838059,1747064231464,-1492.28136312,0.0003836,120]
[360838060,1747064231489,-1492.28136312,0.0003836,120]
[360838061,1747064231515,-1492.28,0.0003836,120]
[360838062,1747064231542,-446.93774204,0.0003836,120]
[360838063,1747064231567,-446.93774204,0.0003836,120]
[360838064,1747064231592,-446.93774204,0.0003836,120]
[360838065,1747064231619,-446.93774204,0.0003836,120]
[360838066,1747064231644,-446.93774204,0.0003836,120]
[360838067,1747064231670,-446.93774204,0.0003836,120]
[360838068,1747064231695,-446.93774204,0.0003836,120]
[360838069,1747064231722,-446.93774204,0.0003836,120]
[360838070,1747064231747,-446.93774204,0.0003836,120]
[360838071,1747064231772,-446.93774204,0.0003836,120]
[360838072,1747064231796,-446.93774204,0.0003836,120]
[360838073,1747064231821,-446.93774204,0.0003836,120]
[360838074,1747064231845,-446.93774204,0.0003836,120]
[360838075,1747064231871,-446.93774204,0.0003836,120]
[360838076,1747064231896,-446.93774204,0.0003836,120]
[360838077,1747064231920,-446.93774204,0.0003836,120]
[360838078,1747064231945,-446.93774204,0.0003836,120]
[360838079,1747064231971,-446.93774204,0.0003836,120]
[360838080,1747064231996,-446.93774204,0.0003836,120]
[360838081,1747064232021,-446.93,0.0003836,120]
[360838082,1747064232045,-1042.85473143,0.0003836,120]
[360838083,1747064232069,-1042.85473143,0.0003836,120]
[360838084,1747064232094,-1042.85473143,0.0003836,120]
[360838085,1747064232120,-1042.85473143,0.0003836,120]
[360838086,1747064232144,-1042.85473143,0.0003836,120]
[360838087,1747064232172,-1042.85473143,0.0003836,120]
[360838088,1747064232197,-1042.85473143,0.0003836,120]
[360838089,1747064232225,-1042.85473143,0.0003836,120]
[360838090,1747064232252,-1042.85473143,0.0003836,120]
[360838091,1747064232277,-1042.85473143,0.0003836,120]
[360838092,1747064232302,-1042.85473143,0.0003836,120]
[360838093,1747064232327,-1042.85473143,0.0003836,120]
[360838094,1747064232353,-1042.85473143,0.0003836,120]
[360838095,1747064232513,-1042.85473143,0.0003836,120]
[360838096,1747064232579,-1042.85473143,0.0003836,120]
[360838097,1747064232606,-1042.85473143,0.0003836,120]
[360838098,1747064232632,-1042.85473143,0.0003836,120]
[360838099,1747064232667,-1042.85473143,0.0003836,120]
[360838100,1747064232725,-1042.85473143,0.0003836,120]
[360838101,1747064232780,-1042.85,0.0003836,120]
[360838102,1747064232835,-297.21732735,0.0003836,120]
[360838103,1747064232919,-297.21732735,0.0003836,120]
[360838104,1747064232999,-297.21732735,0.0003836,120]
[360838105,1747064233025,-297.21732735,0.0003836,120]
[360838106,1747064233050,-297.21732735,0.0003836,120]
[360838107,1747064233076,-297.21732735,0.0003836,120]
[360838108,1747064233102,-297.21732735,0.0003836,120]
[360838109,1747064233127,-297.21732735,0.0003836,120]
[360838110,1747064233156,-297.21732735,0.0003836,120]
[360838111,1747064233182,-297.21732735,0.0003836,120]
[360838112,1747064233208,-297.21732735,0.0003836,120]
[360838113,1747064233237,-297.21732735,0.0003836,120]
[360838114,1747064233264,-297.21732735,0.0003836,120]
[360838115,1747064233290,-297.21732735,0.0003836,120]
[360838116,1747064233317,-297.21732735,0.0003836,120]
[360838117,1747064233344,-297.21732735,0.0003836,120]
[360838118,1747064233370,-297.21732735,0.0003836,120]
[360838119,1747064233396,-297.21732735,0.0003836,120]
[360838120,1747064233422,-297.21732735,0.0003836,120]
[360838121,1747064233447,-297.21,0.0003836,120]
[360838122,1747064233475,-693.50709715,0.0003836,120]
[360838123,1747064233502,-693.50709715,0.0003836,120]
[360838124,1747064233528,-693.50709715,0.0003836,120]
[360838125,1747064233554,-693.50709715,0.0003836,120]
[360838126,1747064233581,-693.50709715,0.0003836,120]
[360838127,1747064233606,-693.50709715,0.0003836,120]
[360838128,1747064233632,-693.50709715,0.0003836,120]
[360838129,1747064233658,-693.50709715,0.0003836,120]
[360838130,1747064233684,-693.50709715,0.0003836,120]
[360838131,1747064233711,-693.50709715,0.0003836,120]
[360838132,1747064233738,-693.50709715,0.0003836,120]
[360838133,1747064233764,-693.50709715,0.0003836,120]
[360838134,1747064233790,-693.50709715,0.0003836,120]
[360838135,1747064233815,-693.50709715,0.0003836,120]
[360838136,1747064233840,-693.50709715,0.0003836,120]
[360838137,1747064233865,-693.50709715,0.0003836,120]
[360838138,1747064233890,-693.50709715,0.0003836,120]
[360838139,1747064233916,-693.50709715,0.0003836,120]
[360838140,1747064233941,-693.50709715,0.0003836,120]
[360838141,1747064233970,-693.5,0.0003836,120]
[360838142,1747064233996,-1826.63,0.0003838,30]
[360838143,1747064234022,-1000.0,0.000388,120]
[360838144,1747064234047,-350.0,0.00038865,30]
[360838145,1747064234073,-2000.0,0.00038904,120]
[360838146,1747064234097,-3000.0,0.0003896,41]
[360838147,1747064234124,-295.56777807,0.00039,120]
[360838148,1747064234149,-349.77801064,0.00039,120]
[360838149,1747064234180,-900.0,0.00039,40]
[360838150,1747064234205,-10000.0,0.00039,120]
[360838151,1747064234233,-1000.0,0.00039,120]
[360838152,1747064234258,-1128.5746,0.00039,120]
[360838153,1747064234285,-160.0,0.000393,30]
[360838154,1747064234310,-160.0,0.000393,30]
[360838155,1747064234336,-3000.0,0.0003944,41]
[360838156,1747064234362,-2000.0,0.00039452,120]
[360838157,1747064234387,-6011.0,0.0003952,120]
[360838158,1747064234413,-4500.0,0.000396,120]
[360838159,1747064234437,-3000.0,0.0003969,41]
[360838160,1747064234464,-581.25,0.000397,120]
[360838161,1747064234490,-495623.74039259,0.000398,120]
[360838162,1747064234515,-350.0,0.00039824,30]
[360838163,1747064234540,-3069.8826,0.0003994,41]
[360838164,1747064234565,-437.0,0.00039986,90]
[360838165,1747064234589,-250.0,0.00039987,30]
[360838166,1747064234617,-50000.0,0.0004,40]
[360838167,1747064234643,-3000.0,0.0004,120]
[360838168,1747064234668,-1500.0,0.0004,120]
[360838169,1747064234692,-477.12749073,0.0004,30]
[360838170,1747064234718,-616.89548206,0.0004,120]
[360838171,1747064234743,-346.10954708,0.0004,30]
[360838172,1747064234767,-198.99612173,0.0004,30]
[360838173,1747064234792,-500.0,0.0004,30]
[360838174,1747064234818,-900.0,0.0004,41]
[360838175,1747064234842,-233.0,0.0004,120]
[360838176,1747064234867,-5333.6240522,0.0004,30]
[360838177,1747064234893,-280.0,0.0004,120]
[360838178,1747064234919,-3659.0,0.0004,120]
[360838179,1747064234945,-1019.0,0.0004,120]
[360838180,1747064234971,-2443.0,0.0004,60]
[360838181,1747064234997,-1943.4782019,0.0004,120]
[360838182,1747064235022,-3011.26586128,0.0004,50]
[360838183,1747064235048,-2235.31,0.0004,120]
[360838184,1747064235074,-2000.0,0.0004,120]
[360838185,1747064235098,-1230.17,0.0004,120]
[360838186,1747064235123,-10000.0,0.0004,120]
[360838187,1747064235150,-500.0,0.0004,120]
[360838188,1747064235178,-1024.0,0.0004,30]
[360838189,1747064235203,-2000.0,0.0004,120]
[360838190,1747064235230,-686.0,0.0004,30]
[360838191,1747064235255,-519.0,0.0004,45]
[360838192,1747064235280,-182.52691516,0.0004,120]
[360838193,1747064235304,-1009.0,0.0004,120]
[360838194,1747064235329,-15036.48324755,0.0004,120]
[360838195,1747064235354,-1412.9863171,0.0004,30]